fUSD/lending_fUSD_20260526
["ID","MTS","AMOUNT","RATE_DAILY","PERIOD"]
[423026533,1779769838000,-350.0,0.00019811,2]
[423026528,1779769838000,-1272.0,0.00019792,2]
[423026526,1779769838000,-225.0,0.00019361,2]
[423026529,1779769838000,-519.0,0.00019792,2]
[423026530,1779769838000,-1226.13,0.00019792,2]
[423026534,1779769838000,-222.0,0.0002,2]
[423026535,1779769838000,-803.0,0.0002,2]
[423026538,1779769838000,-1698.0,0.0002,2]
[423026545,1779769838000,-151.0,0.000202,2]
[423026539,1779769838000,-307.0,0.0002,2]
[423026525,1779769838000,-219.826537,0.00019178,2]
[423026568,1779769838000,-151.0,0.000202,2]
[423026603,1779769838000,-1088.5,0.00020381,2]
[423026571,1779769838000,-151.0,0.000202,2]
[423026598,1779769838000,-151.0,0.000202,2]
[423026599,1779769838000,-151.0,0.000202,2]
[423026600,1779769838000,-151.0,0.000202,2]
[423026604,1779769838000,-150.0,0.00020383,2]
[423026606,1779769838000,-150.0,0.00020383,2]
[423026601,1779769838000,-200.0,0.00020319,2]
[423026602,1779769838000,-621.39,0.00020376,2]
[423026623,1779769838000,-725.0,0.00020548,2]
[423026605,1779769838000,-150.0,0.00020383,2]
[423026609,1779769838000,-150.0,0.00020383,2]
[423026611,1779769838000,-151.0,0.00020383,2]
[423026608,1779769838000,-150.0,0.00020383,2]
[423026614,1779769838000,-210.298871,0.00020383,2]
[423026615,1779769838000,-734.56253251,0.00020436,2]
[423026610,1779769838000,-154.44004852,0.00020383,2]
[423026613,1779769838000,-151.0,0.00020383,2]
[423026612,1779769838000,-151.0,0.00020383,2]
[423026618,1779769838000,-1352.21047309,0.00020483,2]
[423026621,1779769838000,-2846.78,0.00020548,2]
[423026616,1779769838000,-200.0,0.00020483,2]
[423026619,1779769838000,-200.0,0.00020483,2]
[423026620,1779769838000,-150.0,0.00020483,2]
[423026622,1779769838000,-151.0,0.00020548,2]
[423026624,1779769838000,-150.0,0.0002058,2]
[423026617,1779769838000,-200.0,0.00020483,2]
[423026596,1779769838000,-151.0,0.000202,2]
[423026567,1779769838000,-500.0,0.000202,2]
[423026607,1779769838000,-150.0,0.00020383,2]
[423026597,1779769838000,-151.0,0.000202,2]
[423026580,1779769838000,-151.0,0.000202,2]
[423026581,1779769838000,-151.0,0.000202,2]
[423026578,1779769838000,-151.0,0.000202,2]
[423026572,1779769838000,-151.0,0.000202,2]
[423026575,1779769838000,-151.0,0.000202,2]
[423026570,1779769838000,-500.0,0.000202,2]
[423026577,1779769838000,-151.0,0.000202,2]
[423026579,1779769838000,-500.0,0.000202,2]
[423026573,1779769838000,-500.0,0.000202,2]
[423026574,1779769838000,-151.0,0.000202,2]
[423026591,1779769838000,-310.99987464,0.000202,2]
[423026576,1779769838000,-500.0,0.000202,2]
[423026589,1779769838000,-151.0,0.000202,2]
[423026595,1779769838000,-151.0,0.000202,2]
[423026582,1779769838000,-500.0,0.000202,2]
[423026594,1779769838000,-151.0,0.000202,2]
[423026590,1779769838000,-151.0,0.000202,2]
[423026586,1779769838000,-151.0,0.000202,2]
[423026584,1779769838000,-151.0,0.000202,2]
[423026593,1779769838000,-151.0,0.000202,2]
[423026585,1779769838000,-500.0,0.000202,2]
[423026592,1779769838000,-151.0,0.000202,2]
[423026588,1779769838000,-500.0,0.000202,2]
[423026587,1779769838000,-151.0,0.000202,2]
[423026583,1779769838000,-151.0,0.000202,2]
[423026645,1779769839000,-152.0,0.00020661,2]
[423026641,1779769839000,-152.0,0.00020661,2]
[423026644,1779769839000,-578.20924308,0.00020661,2]
[423026642,1779769839000,-601.3376128,0.00020661,2]
[423026647,1779769839000,-152.0,0.00020661,2]
[423026659,1779769839000,-500.0,0.00020687,2]
[423026653,1779769839000,-152.0,0.00020661,2]
[423026660,1779769839000,-200.0,0.00020688,2]
[423026648,1779769839000,-152.0,0.00020661,2]
[423026656,1779769839000,-152.0,0.00020661,2]
[423026652,1779769839000,-152.0,0.00020661,2]
[423026657,1779769839000,-152.0,0.00020661,2]
[423026646,1779769839000,-152.0,0.00020661,2]
[423026649,1779769839000,-152.0,0.00020661,2]
[423026643,1779769839000,-152.0,0.00020661,2]
[423026635,1779769839000,-279.9045709,0.00020661,2]
[423026637,1779769839000,-200.0,0.00020661,2]
[423026626,1779769839000,-1000.0,0.000206,2]
[423026625,1779769839000,-150.0,0.0002058,2]
[423026634,1779769839000,-743.50770149,0.00020661,2]
[423026650,1779769839000,-152.0,0.00020661,2]
[423026632,1779769839000,-1191.11104074,0.00020661,2]
[423026628,1779769839000,-3469.25545848,0.00020661,2]
[423026640,1779769839000,-174.61919141,0.00020661,2]
[423026630,1779769839000,-578.20924308,0.00020661,2]
[423026627,1779769839000,-174.61919141,0.00020661,2]
[423026633,1779769839000,-174.61919141,0.00020661,2]
[423026631,1779769839000,-187.78006525,0.00020661,2]
[423026638,1779769839000,-7965.41053267,0.00020661,2]
[423026636,1779769839000,-151.0,0.00020661,2]
[423026639,1779769839000,-174.61919141,0.00020661,2]
[423026629,1779769839000,-157.18421635,0.00020661,2]
[423026658,1779769839000,-152.0,0.00020661,2]
[423026661,1779769839000,-200.0,0.00020688,2]
[423026655,1779769839000,-152.0,0.00020661,2]
[423026677,1779769839000,-599.60298507,0.00020716,2]
[423026688,1779769839000,-668.65185756,0.00020881,2]
[423026679,1779769839000,-5489.59536808,0.00020716,2]
[423026684,1779769839000,-2551.23522725,0.00020795,2]
[423026680,1779769839000,-200.0,0.00020748,2]
[423026683,1779769839000,-151.0,0.00020771,2]
[423026681,1779769839000,-1798.80895522,0.00020748,2]
[423026685,1779769839000,-644.79446245,0.00020826,2]
[423026682,1779769839000,-621.78829552,0.00020771,2]
[423026689,1779769839000,-151.0,0.00020881,2]
[423026692,1779769839000,-11509.3861592,0.00020894,2]
[423026690,1779769839000,-151.0,0.00020894,2]
[423026693,1779769839000,-258.2207912,0.00020894,2]
[423026691,1779769839000,-151.0,0.00020894,2]
[423026651,1779769839000,-152.0,0.00020661,2]
[423026675,1779769839000,-151.0,0.00020716,2]
[423026678,1779769839000,-151.0,0.00020716,2]
[423026662,1779769839000,-200.0,0.00020688,2]
[423026686,1779769839000,-151.0,0.00020826,2]
[423026654,1779769839000,-152.0,0.00020661,2]
[423026687,1779769839000,-524.0,0.00020841,7]
[423026671,1779769839000,-151.0,0.00020716,2]
[423026663,1779769839000,-151.0,0.00020688,2]
[423026673,1779769839000,-151.0,0.00020716,2]
[423026672,1779769839000,-151.0,0.00020716,2]
[423026674,1779769839000,-151.0,0.00020716,2]
[423026670,1779769839000,-151.0,0.00020716,2]
[423026665,1779769839000,-597.471319,0.00020688,2]
[423026667,1779769839000,-597.471319,0.00020688,2]
[423026666,1779769839000,-597.471319,0.00020688,2]
[423026669,1779769839000,-210.606524,0.00020716,2]
[423026668,1779769839000,-151.0,0.00020716,2]
[423026676,1779769839000,-151.0,0.00020716,2]
[423026664,1779769839000,-597.471319,0.00020688,2]
[423026711,1779769843000,-634.28,0.00020894,2]
[423026710,1779769843000,-924.12786659,0.00020894,2]
[423026708,1779769843000,-302.0,0.00020894,7]
[423026709,1779769843000,-34.25506771,0.00020894,2]
[423026707,1779769843000,-309.0,0.000206,2]
[423026740,1779769846000,-222.0,0.00021,2]
[423026745,1779769846000,-307.0,0.00021,2]
[423026738,1779769846000,-719.04747942,0.00020991,2]
[423026748,1779769846000,-597.471319,0.00021,2]
[423026742,1779769846000,-155.0,0.00021,2]
[423026744,1779769846000,-1698.0,0.00021,2]
[423026747,1779769846000,-597.471319,0.00021,2]
[423026741,1779769846000,-803.0,0.00021,2]
[423026731,1779769846000,-1639.7301153,0.00020894,2]
[423026739,1779769846000,-151.0,0.00020991,2]
[423026737,1779769846000,-155.20974893,0.00020952,2]
[423026735,1779769846000,-693.39197629,0.00020936,2]
[423026732,1779769846000,-200.0,0.00020895,2]
[423026734,1779769846000,-200.0,0.00020895,2]
[423026730,1779769846000,-358.0,0.00020894,7]
[423026736,1779769846000,-151.0,0.00020936,2]
[423026746,1779769846000,-151.0,0.00021,2]
[423026733,1779769846000,-200.0,0.00020895,2]
[423026743,1779769846000,-743.0,0.00021,2]
[423026749,1779769846000,-597.471319,0.00021,2]
[423026759,1779769846000,-801.85129954,0.00021156,2]
[423026752,1779769846000,-151.0,0.00021046,2]
[423026729,1779769846000,-1355.0,0.00018932,2]
[423026771,1779769846000,-256.84210766,0.00021211,2]
[423026769,1779769846000,-151.0,0.00021211,2]
[423026767,1779769846000,-181.08010149,0.00021209,2]
[423026766,1779769846000,-200.0,0.00021209,2]
[423026768,1779769846000,-181.08010149,0.00021209,2]
[423026765,1779769846000,-290.26104002,0.00021209,2]
[423026760,1779769846000,-151.0,0.00021156,2]
[423026750,1779769846000,-597.471319,0.00021,2]
[423026756,1779769846000,-200.0,0.00021104,2]
[423026757,1779769846000,-200.0,0.00021104,2]
[423026758,1779769846000,-200.0,0.00021104,2]
[423026755,1779769846000,-151.0,0.00021101,2]
[423026751,1779769846000,-745.65223615,0.00021046,2]
[423026754,1779769846000,-773.24136889,0.00021101,2]
[423026764,1779769846000,-771.01748644,0.00021209,2]
[423026763,1779769846000,-181.08010149,0.00021209,2]
[423026762,1779769846000,-1235.18214925,0.00021209,2]
[423026761,1779769846000,-181.08010149,0.00021209,2]
[423026770,1779769846000,-1.20955937,0.00021211,2]
[423026772,1779769847000,-354.70923108,0.00021211,2]
[423026781,1779770512000,2500.0,0.0002808,120]
[423026782,1779770549000,2500.0,0.0002808,120]
[423026783,1779770562000,2500.0,0.0002808,120]
[423026784,1779770575000,2500.0,0.0002808,120]
[423026785,1779770592000,2500.0,0.0002808,120]
[423026786,1779770609000,2500.0,0.0002808,120]
[423026787,1779770619000,2500.0,0.0002808,120]
[423026788,1779770632000,2500.0,0.0002808,120]
[423026789,1779770654000,2500.0,0.0002808,120]
[423026790,1779770666000,2500.0,0.0002808,120]
[423026791,1779770677000,2500.0,0.0002808,120]
[423026793,1779770833000,389.0,0.0002808,120]
[423026796,1779770941000,1000.0,0.00028079,120]
[423026825,1779771032000,-628.78,0.00018879,2]
[423026818,1779771032000,-216.32505331,0.00017702,2]
[423026819,1779771032000,-420.0,0.0001772,2]
[423026823,1779771032000,-632.93,0.00018728,2]
[423026824,1779771032000,-166.66,0.00018851,2]
[423026826,1779771032000,-928.0,0.00018963,2]
[423026833,1779771032000,-989.83254179,0.00018963,2]
[423026829,1779771032000,-626.0,0.00018963,2]
[423026822,1779771032000,-985.8,0.0001841,2]
[423026830,1779771032000,-1272.0,0.00018963,2]
[423026831,1779771032000,-519.0,0.00018963,2]
[423026828,1779771032000,-1355.0,0.00018963,2]
[423026820,1779771032000,-1680.0,0.00017809,2]
[423026832,1779771032000,-235.16745821,0.00018963,2]
[423026827,1779771032000,-3547.0,0.00018963,2]
[423026811,1779771032000,-150.83627315,0.00016412,2]
[423026812,1779771032000,-985.8,0.00016438,2]
[423026817,1779771032000,-608.32316535,0.000177,2]
[423026800,1779771032000,-250.0,0.00014,2]
[423026804,1779771032000,-210.42607263,0.00016112,2]
[423026808,1779771032000,-894.522,0.00016212,2]
[423026802,1779771032000,-314.15898553,0.00015972,2]
[423026803,1779771032000,-300.0,0.00016,2]
[423026805,1779771032000,-300.0,0.00016211,2]
[423026807,1779771032000,-46335.2503,0.00016212,2]
[423026806,1779771032000,-1200.0,0.00016211,2]
[423026809,1779771032000,-550.0,0.00016311,2]
[423026810,1779771032000,-215.42269777,0.00016338,2]
[423026837,1779771032000,-200.0,0.000193,2]
[423026815,1779771032000,-608.32316535,0.000174,2]
[423026813,1779771032000,-608.32316535,0.00017,2]
[423026816,1779771032000,-608.32316535,0.000176,2]
[423026814,1779771032000,-608.32316535,0.000172,2]
[423026821,1779771032000,-350.0,0.00018,2]
[423026834,1779771032000,-931.0,0.00018963,2]
[423026801,1779771032000,-252.07104316,0.000154,2]
[423026838,1779771032000,-218.21,0.00019313,2]
[423026859,1779771032000,-503.97765663,0.0002,2]
[423026860,1779771032000,-853.0,0.0002,2]
[423026862,1779771032000,-985.8,0.00020381,2]
[423026865,1779771032000,-613.9604961,0.00020767,2]
[423026864,1779771032000,-466.9,0.0002073,2]
[423026868,1779771032000,-14.8195039,0.00020767,2]
[423026872,1779771032000,-166.66,0.00020835,2]
[423026870,1779771032000,-2052.50739329,0.0002078,2]
[423026861,1779771032000,-628.78,0.00020295,2]
[423026874,1779771032000,-383.67459545,0.00020879,2]
[423026876,1779771032000,-116.32540455,0.00020879,2]
[423026880,1779771032000,-3595.26646898,0.0002088,2]
[423026884,1779771032000,-3000.0,0.0002088,2]
[423026878,1779771032000,-500.0,0.00020879,2]
[423026836,1779771032000,-508.08,0.00019209,2]
[423026858,1779771032000,-185.59091206,0.0002,2]
[423026852,1779771032000,-167.0,0.0002,2]
[423026863,1779771032000,-200.0,0.0002068,2]
[423026854,1779771032000,-832.0,0.0002,2]
[423026841,1779771032000,-628.78,0.00019351,2]
[423026840,1779771032000,-6503.42,0.00019322,2]
[423026843,1779771032000,-181.13,0.00019542,2]
[423026839,1779771032000,-151.0,0.00019322,2]
[423026842,1779771032000,-587.0,0.0001937,2]
[423026845,1779771032000,-166.49,0.00019608,2]
[423026844,1779771032000,-890.41,0.00019542,2]
[423026850,1779771032000,-868.0,0.0002,2]
[423026846,1779771032000,-628.78,0.00019823,2]
[423026835,1779771032000,-418.0,0.00018963,2]
[423026849,1779771032000,-244.0,0.0002,2]
[423026851,1779771032000,-157.0,0.0002,2]
[423026856,1779771032000,-1715.0,0.0002,2]
[423026847,1779771032000,-166.66,0.00019843,2]
[423026855,1779771032000,-159.36241002,0.0002,2]
[423026857,1779771032000,-116.40908794,0.0002,2]
[423026848,1779771032000,-400.0,0.0002,2]
[423026895,1779771038000,-5091.90804701,0.0002088,2]
[423026896,1779771038000,-369.6424995,0.0002088,2]
[423026894,1779771038000,-667.59085327,0.0002088,2]
[423027289,1779771041000,-519.56113632,0.0002088,2]
[423027238,1779771041000,-350.33533698,0.0002088,2]
[423027230,1779771041000,-5186.96950047,0.0002088,2]
[423027195,1779771041000,-2410.0,0.0002088,2]
[423027192,1779771041000,-334.08,0.0002088,2]
[423027537,1779771043000,-368.32505331,0.0002088,2]
[423027530,1779771043000,-1253.48224332,0.0002088,2]
[423027527,1779771043000,-639.42,0.0002088,2]
[423027532,1779771043000,-9167.64423464,0.0002088,2]
[423027553,1779771043000,-151.0,0.0002088,2]
[423027541,1779771043000,-49131.6482614,0.0002088,2]
[423027551,1779771043000,-256.262436,0.0002088,2]
[423027547,1779771043000,-151.0,0.0002088,2]
[423027545,1779771043000,-151.0,0.0002088,2]
[423027543,1779771043000,-151.0,0.0002088,2]
[423027558,1779771043000,-168.620465,0.0002088,2]
[423027568,1779771043000,-309.0,0.000209,2]
[423027564,1779771043000,-151.0,0.0002088,2]
[423027566,1779771043000,-151.0,0.0002088,2]
[423027570,1779771043000,-1000.0,0.000209,2]
[423027555,1779771043000,-168.620465,0.0002088,2]
[423027562,1779771043000,-168.620465,0.0002088,2]
[423027560,1779771043000,-168.620465,0.0002088,2]
[423027549,1779771043000,-4316.0541996,0.0002088,2]
[423027572,1779771043000,-244.0,0.00021,2]
[423027645,1779771044000,-279.9045709,0.000215,2]
[423027641,1779771044000,-152.0,0.000215,2]
[423027649,1779771044000,-281.85782161,0.000215,2]
[423027647,1779771044000,-174.61919141,0.000215,2]
[423027653,1779771044000,-152.0,0.000215,2]
[423027651,1779771044000,-151.0,0.000215,2]
[423027655,1779771044000,-272.3069048,0.000215,2]
[423027657,1779771044000,-578.20924308,0.000215,2]
[423027659,1779771044000,-151.0,0.000215,2]
[423027639,1779771044000,-743.50770149,0.000215,2]
[423027634,1779771044000,-151.0,0.000215,2]
[423027667,1779771044000,-151.0,0.000215,2]
[423027663,1779771044000,-1734.62772924,0.000215,2]
[423027661,1779771044000,-152.0,0.000215,2]
[423027669,1779771044000,-152.0,0.000215,2]
[423027643,1779771044000,-151.0,0.000215,2]
[423027665,1779771044000,-151.0,0.000215,2]
[423027679,1779771044000,-151.0,0.000215,2]
[423027671,1779771044000,-151.0,0.000215,2]
[423027673,1779771044000,-151.0,0.000215,2]
[423027675,1779771044000,-152.0,0.000215,2]
[423027684,1779771044000,-152.0,0.000215,2]
[423027677,1779771044000,-151.0,0.000215,2]
[423027682,1779771044000,-151.0,0.000215,2]
[423027636,1779771044000,-601.3376128,0.000215,2]
[423027624,1779771044000,-151.0,0.000215,2]
[423027619,1779771044000,-3469.25545848,0.000215,2]
[423027622,1779771044000,-1191.11104074,0.000215,2]
[423027575,1779771044000,-868.0,0.00021,2]
[423027577,1779771044000,-167.0,0.00021,2]
[423027581,1779771044000,-1715.0,0.00021,2]
[423027579,1779771044000,-832.0,0.00021,2]
[423027583,1779771044000,-2068.0,0.00021,5]
[423027585,1779771044000,-302.0,0.00021,2]
[423027589,1779771044000,-823.0,0.00021173,2]
[423027593,1779771044000,-200.0,0.00021211,2]
[423027591,1779771044000,-1005.33,0.0002121,10]
[423027601,1779771044000,-200.0,0.000213,2]
[423027595,1779771044000,-200.0,0.00021211,2]
[423027599,1779771044000,-862.28603014,0.00021266,2]
[423027603,1779771044000,-894.19061325,0.00021321,2]
[423027587,1779771044000,-268.0,0.00021003,7]
[423027597,1779771044000,-218.75889951,0.00021211,2]
[423027607,1779771044000,-200.0,0.00021423,2]
[423027605,1779771044000,-927.27566594,0.00021376,2]
[423027610,1779771044000,-200.0,0.00021423,2]
[423027615,1779771044000,-997.16350561,0.00021486,2]
[423027617,1779771044000,-174.61919141,0.000215,2]
[423027620,1779771044000,-200.0,0.000215,2]
[423027612,1779771044000,-961.58486558,0.00021431,2]
[423027630,1779771044000,-500.0,0.000215,2]
[423027632,1779771044000,-174.61919141,0.000215,2]
[423027626,1779771044000,-200.0,0.000215,2]
[423027628,1779771044000,-151.0,0.000215,2]
[423027686,1779771044000,-151.0,0.000215,2]
[423027710,1779771044000,-152.0,0.000215,2]
[423027692,1779771044000,-151.0,0.000215,2]
[423027758,1779771044000,-168.620465,0.000215,2]
[423027756,1779771044000,-168.620465,0.000215,2]
[423027763,1779771044000,-159.1094691,0.00021637,2]
[423027765,1779771044000,-500.0,0.00021644,2]
[423027767,1779771044000,-500.0,0.00021644,2]
[423027770,1779771044000,-500.0,0.00021644,2]
[423027772,1779771044000,-150.0,0.00021644,2]
[423027774,1779771044000,-150.0,0.00021644,2]
[423027776,1779771044000,-150.0,0.00021644,2]
[423027785,1779771044000,-150.0,0.00021644,2]
[423027783,1779771044000,-500.0,0.00021644,2]
[423027754,1779771044000,-168.620465,0.000215,2]
[423027781,1779771044000,-500.0,0.00021644,2]
[423027787,1779771044000,-500.0,0.00021644,2]
[423027789,1779771044000,-150.0,0.00021644,2]
[423027791,1779771044000,-519.17900642,0.00021644,2]
[423027792,1779771044000,-217.42558976,0.00021644,2]
[423027794,1779771044000,-500.0,0.00021644,2]
[423027797,1779771044000,-500.0,0.00021644,2]
[423027799,1779771044000,-500.0,0.00021644,2]
[423027801,1779771044000,-500.0,0.00021644,2]
[423027803,1779771044000,-500.0,0.00021644,2]
[423027805,1779771044000,-577.41851285,0.00021644,2]
[423027815,1779771044000,-151.0,0.00021823,2]
[423027779,1779771044000,-197.0,0.00021644,2]
[423027749,1779771044000,-151.0,0.000215,2]
[423027688,1779771044000,-151.0,0.000215,2]
[423027752,1779771044000,-168.620465,0.000215,2]
[423027761,1779771044000,-200.0,0.00021637,2]
[423027690,1779771044000,-152.0,0.000215,2]
[423027708,1779771044000,-151.0,0.000215,2]
[423027694,1779771044000,-151.0,0.000215,2]
[423027697,1779771044000,-152.0,0.000215,2]
[423027699,1779771044000,-151.0,0.000215,2]
[423027701,1779771044000,-151.0,0.000215,2]
[423027703,1779771044000,-152.0,0.000215,2]
[423027712,1779771044000,-151.0,0.000215,2]
[423027714,1779771044000,-151.0,0.000215,2]
[423027723,1779771044000,-200.19064667,0.000215,2]
[423027716,1779771044000,-152.0,0.000215,2]
[423027705,1779771044000,-151.0,0.000215,2]
[423027720,1779771044000,-151.0,0.000215,2]
[423027745,1779771044000,-151.0,0.000215,2]
[423027718,1779771044000,-151.0,0.000215,2]
[423027743,1779771044000,-151.0,0.000215,2]
[423027741,1779771044000,-151.0,0.000215,2]
[423027739,1779771044000,-151.0,0.000215,2]
[423027736,1779771044000,-151.0,0.000215,2]
[423027747,1779771044000,-151.0,0.000215,2]
[423027730,1779771044000,-151.0,0.000215,2]
[423027734,1779771044000,-151.0,0.000215,2]
[423027728,1779771044000,-151.0,0.000215,2]
[423027726,1779771044000,-151.0,0.000215,2]
[423027732,1779771044000,-151.0,0.000215,2]
[423027854,1779771045000,-151.0,0.00021918,2]
[423027818,1779771045000,-151.0,0.00021823,2]
[423027820,1779771045000,-1263.5266304,0.00021823,2]
[423027850,1779771045000,-917.138,0.00021895,2]
[423027851,1779771045000,-500.0,0.000219,2]
[423027847,1779771045000,-7971.67376982,0.00021823,2]
[423027846,1779771045000,-1054.63499978,0.00021823,2]
[423027849,1779771045000,-277.891386,0.00021887,2]
[423027848,1779771045000,-200.0,0.00021854,2]
[423027852,1779771045000,-2480.74217623,0.00021918,2]
[423027869,1779771045000,-24.62093981,0.00021918,2]
[423027853,1779771045000,-151.0,0.00021918,2]
[423027863,1779771045000,-684.98906019,0.00021918,2]
[423027867,1779771045000,-150.0,0.00021918,2]
[423027865,1779771045000,-164.8,0.00021918,2]
[423027857,1779771045000,-151.0,0.00021918,2]
[423027866,1779771045000,-150.0,0.00021918,2]
[423027858,1779771045000,-3106.32914063,0.00021918,2]
[423027861,1779771045000,-1208.68179918,0.00021918,2]
[423027856,1779771045000,-151.0,0.00021918,2]
[423027868,1779771045000,-150.0,0.00021918,2]
[423027875,1779771046000,-168.620465,0.00021963,2]
[423027874,1779771046000,-168.620465,0.00021963,2]
[423027873,1779771046000,-125.37906019,0.00021918,2]
[423027876,1779771046000,-168.620465,0.00021963,2]
[423027872,1779771046000,-535.0,0.000219,7]
[423027870,1779771046000,-649.2,0.00018963,2]
[423027871,1779771046000,-5412.8,0.00018963,2]
[423027877,1779771046000,-168.620465,0.00021963,2]
[423027881,1779771046000,-678.73342573,0.00021963,2]
[423027879,1779771046000,-2548.55657427,0.00021963,2]
[423027880,1779771046000,-319.71,0.00021963,2]
[423027878,1779771046000,-928.0,0.00021963,2]
[423027882,1779771046000,-224.62644022,0.00021963,2]
[423027884,1779771046000,-626.0,0.00021963,2]
[423027885,1779771046000,-1137.59168673,0.00021963,2]
[423027883,1779771046000,-1130.37355978,0.00021963,2]
[423027886,1779771046000,-134.40831327,0.00021963,2]
[423027887,1779771046000,-437.42114131,0.00021963,2]
[423027910,1779771193000,468.10640747,0.00027855,120]
[423027911,1779771301000,-213.87527368,0.00016182,2]
[423027912,1779771301000,-155.0,0.00016211,2]
[423027914,1779771301000,-71.12472632,0.00016211,2]
[423027913,1779771301000,-230.0,0.00016211,2]
[423027915,1779771536000,998.6,0.00028,120]
[423027917,1779771660000,1760.2589144,0.00025622,120]
[423027916,1779771660000,1760.2589144,0.00025581,120]
[423027918,1779771661000,1760.2589144,0.00025663,120]
[423027919,1779771662000,1760.2589144,0.00025703,120]
[423027923,1779772141000,1000.0,0.00028078,120]
[423027948,1779772232000,-392.0,0.00016209,2]
[423027944,1779772232000,-1291.6745,0.00016112,2]
[423027946,1779772232000,-1229.88,0.00016195,2]
[423027955,1779772232000,-500.0,0.00016211,2]
[423027945,1779772232000,-1200.0,0.00016194,2]
[423027935,1779772232000,-166.46500359,0.00015476,2]
[423027939,1779772232000,-150.0,0.00015692,2]
[423027936,1779772232000,-155.0,0.00015476,2]
[423027940,1779772232000,-161.72,0.00015853,2]
[423027943,1779772232000,-300.0,0.00016,2]
[423027942,1779772232000,-1549.86,0.00015967,2]
[423027937,1779772232000,-476.27243847,0.00015634,2]
[423027947,1779772232000,-200.0,0.00016195,2]
[423027941,1779772232000,-166.66,0.00015894,2]
[423027933,1779772232000,-161.72,0.00014092,2]
[423027932,1779772232000,-250.0,0.00014,2]
[423027931,1779772232000,-119.74172089,0.0001233,2]
[423027930,1779772232000,-41.97827911,0.0001233,2]
[423027928,1779772232000,-382.3,0.0001233,2]
[423027929,1779772232000,-544.31878054,0.0001233,2]
[423027927,1779772232000,-161.72,0.00010569,2]
[423027938,1779772232000,-210.30211569,0.00015634,2]
[423027934,1779772232000,-166.66,0.00015099,2]
[423027949,1779772232000,-278.5545033,0.00016211,2]
[423027950,1779772232000,-500.0,0.00016211,2]
[423027974,1779772232000,-2599.15164586,0.00016212,2]
[423027975,1779772232000,-11724.99433307,0.00016212,2]
[423027973,1779772232000,-468.75595281,0.00016212,2]
[423027972,1779772232000,-5093.03852259,0.00016212,2]
[423027971,1779772232000,-1663.6855344,0.00016212,2]
[423027969,1779772232000,-357.88151182,0.00016212,2]
[423027967,1779772232000,-351.02307539,0.00016212,2]
[423027953,1779772232000,-500.0,0.00016211,2]
[423027968,1779772232000,-491.0360497,0.00016212,2]
[423027966,1779772232000,-5880.0,0.00016212,2]
[423027963,1779772232000,-1292.2457146,0.00016212,2]
[423027970,1779772232000,-315.42809693,0.00016212,2]
[423027962,1779772232000,-1763.97926805,0.00016212,2]
[423027964,1779772232000,-1384.68337832,0.00016212,2]
[423027954,1779772232000,-600.0,0.00016211,2]